fUSD/lending_fUSD_20260108
["ID","MTS","AMOUNT","RATE_DAILY","PERIOD"]
[400958706,1767871695004,-8530.62739028,0.00010059,2]
[400958707,1767871695138,-1200.0,0.00010058,2]
[400958708,1767871695187,-7600.01,0.00010059,2]
[400958709,1767871695238,-10000.01,0.00010059,2]
[400958711,1767871701011,-272.88723721,0.00010059,2]
[400958712,1767871701116,-259.47663464,0.000101,2]
[400958713,1767871701145,-300.0,0.00010148,2]
[400958714,1767871701173,-333.28123659,0.00010191,2]
[400958715,1767871701201,-1079.50104459,0.00010237,2]
[400958716,1767871701230,-300.0,0.0001026,2]
[400958717,1767871701262,-282.41527301,0.00010368,2]
[400958718,1767871701293,-370.33822347,0.00010368,2]
[400958719,1767871701322,-300.0,0.00010368,2]
[400958720,1767871701351,-510.34521854,0.00010368,2]
[400958721,1767871701381,-500.0,0.00010368,2]
[400958722,1767871701412,-483.5202639,0.00010368,2]
[400958723,1767871701646,-16.4797361,0.00010368,2]
[400958724,1767871707206,-500.0,0.00010368,2]
[400958725,1767871707235,-197.59414723,0.00010368,2]
[400958726,1767871707263,-282.881,0.00010369,2]
[400958727,1767871707292,-3762.83570554,0.00010369,2]
[400958728,1767871707370,-513.38829446,0.00010369,2]
[400958729,1767871707413,-333.28123659,0.00010381,2]
[400958730,1767871707442,-863.99043417,0.00010481,2]
[400958731,1767871707474,-2935.96583492,0.00010481,2]
[400958732,1767871707564,-4112.9,0.00010481,2]
[400958733,1767871707594,-499.99,0.00010481,2]
[400958734,1767871707650,-1233.54498864,0.00010481,2]
[400958735,1767871707672,-499.99,0.00010481,2]
[400958736,1767871707691,-774.23,0.00010481,2]
[400958739,1767871716046,17950.62070423,0.0001,2]
[400958741,1767871811902,-292.97250298,0.0001002,2]
[400958742,1767871813262,-420.18231643,0.0001002,2]
[400958743,1767871814929,1818.09,9.749e-05,2]
[400958744,1767871816326,-156.21597287,0.0001002,2]
[400958745,1767871819476,-207.08957226,0.0001002,2]
[400958761,1767871831938,-23.53963546,0.0001002,2]
[400958762,1767871831948,-250.0,0.00010159,2]
[400958763,1767871831961,-1100.0,0.00010299,2]
[400958764,1767871831970,-234.0,0.00010299,2]
[400958765,1767871831980,-1200.0,0.0001048,2]
[400958766,1767871831989,-288.76861402,0.0001048,2]
[400958767,1767871832001,-11.23138598,0.0001048,2]
[400958768,1767871832010,-150.0,0.0001048,2]
[400958769,1767871832020,-124.61325666,0.0001048,2]
[400958770,1767871832033,-375.38674334,0.0001048,2]
[400958771,1767871832043,-353.52974813,0.0001048,2]
[400958772,1767871832070,-146.47025187,0.0001048,2]
[400958773,1767871832079,-500.0,0.0001048,2]
[400958774,1767871832088,-500.0,0.0001048,2]
[400958775,1767871832098,-500.0,0.0001048,2]
[400958776,1767871832107,-500.0,0.0001048,2]
[400958777,1767871832116,-500.0,0.0001048,2]
[400958778,1767871832125,-500.0,0.0001048,2]
[400958779,1767871832134,-500.0,0.0001048,2]
[400958780,1767871832143,-500.0,0.0001048,2]
[400958781,1767871832153,-500.0,0.0001048,2]
[400958782,1767871832162,-500.0,0.0001048,2]
[400958783,1767871832171,-500.0,0.0001048,2]
[400958784,1767871832179,-500.0,0.0001048,2]
[400958785,1767871832189,-500.0,0.0001048,2]
[400958786,1767871832198,-500.0,0.0001048,2]
[400958787,1767871832208,-500.0,0.0001048,2]
[400958788,1767871832217,-500.0,0.0001048,2]
[400958789,1767871832227,-500.0,0.0001048,2]
[400958790,1767871832236,-500.0,0.0001048,2]
[400958791,1767871832245,-142.16083894,0.0001048,2]
[400958792,1767871832256,-357.83916106,0.0001048,2]
[400958793,1767871832265,-500.0,0.0001048,2]
[400958794,1767871832275,-500.0,0.0001048,2]
[400958795,1767871832284,-500.0,0.0001048,2]
[400958796,1767871832294,-500.0,0.0001048,2]
[400958797,1767871832304,-500.0,0.0001048,2]
[400958798,1767871832313,-500.0,0.0001048,2]
[400958799,1767871832323,-244.38622742,0.0001048,2]
[400958800,1767871832332,-500.0,0.0001048,2]
[400958801,1767871832342,-500.0,0.0001048,2]
[400958802,1767871832355,-500.0,0.0001048,2]
[400958803,1767871832365,-500.0,0.0001048,2]
[400958804,1767871832374,-500.0,0.0001048,2]
[400958805,1767871832384,-500.0,0.0001048,2]
[400958806,1767871832393,-500.0,0.0001048,2]
[400958807,1767871832402,-500.0,0.0001048,2]
[400958808,1767871832413,-300.0,0.0001048,2]
[400958809,1767871832422,-500.0,0.0001048,2]
[400958810,1767871832434,-500.0,0.0001048,2]
[400958811,1767871832444,-500.0,0.0001048,2]
[400958812,1767871832453,-500.0,0.0001048,2]
[400958813,1767871832463,-500.0,0.0001048,2]
[400958814,1767871832472,-500.0,0.0001048,2]
[400958815,1767871832483,-500.0,0.0001048,2]
[400958816,1767871832492,-500.0,0.0001048,2]
[400958817,1767871832503,-500.0,0.0001048,2]
[400958818,1767871832512,-500.0,0.0001048,2]
[400958819,1767871832521,-300.0,0.00010481,2]
[400958820,1767871832531,-7492.22501136,0.00010481,2]
[400958821,1767871832540,-7980.43,0.00010481,2]
[400958822,1767871832549,-11293.29,0.00010481,2]
[400958823,1767871832559,-150.99,0.00010481,2]
[400958824,1767871832568,-4475.9683,0.00010493,2]
[400958825,1767871832578,-999.99,0.00010529,2]
[400958826,1767871832587,-9999.99,0.00010529,2]
[400958827,1767871832596,-44410.45,0.00010529,2]
[400958828,1767871832606,-9999.99,0.00010575,2]
[400958829,1767871832615,-150.99,0.00010575,2]
[400958830,1767871832624,-9999.99,0.00010575,2]
[400958831,1767871832633,-7942.7,0.00010575,2]
[400958832,1767871832643,-151.0,0.00010575,2]
[400958833,1767871832652,-151.0,0.00010575,2]
[400958834,1767871832663,-151.0,0.00010575,2]
[400958835,1767871832672,-151.0,0.00010575,2]
[400958836,1767871832681,-200.0,0.00010575,2]
[400958837,1767871832690,-151.0,0.00010575,2]
[400958838,1767871832699,-151.0,0.00010575,2]
[400958839,1767871832709,-151.0,0.00010575,2]
[400958840,1767871832718,-151.0,0.00010575,2]
[400958841,1767871832727,-500.0,0.00010575,2]
[400958842,1767871832737,-151.0,0.00010575,2]
[400958843,1767871832749,-151.0,0.00010575,2]
[400958844,1767871832758,-500.0,0.00010575,2]
[400958845,1767871832767,-151.0,0.00010575,2]
[400958846,1767871832778,-500.0,0.00010575,2]
[400958847,1767871832787,-151.0,0.00010575,2]
[400958848,1767871832796,-500.0,0.00010575,2]
[400958849,1767871832805,-151.0,0.00010575,2]
[400958850,1767871832814,-500.0,0.00010575,2]
[400958851,1767871832823,-151.0,0.00010575,2]
[400958852,1767871832832,-500.0,0.00010575,2]
[400958853,1767871832842,-151.0,0.00010575,2]
[400958854,1767871832851,-500.0,0.00010575,2]
[400958855,1767871832861,-151.0,0.00010575,2]
[400958856,1767871832870,-633.89985627,0.00010575,2]
[400958857,1767871832879,-151.0,0.00010575,2]
[400958858,1767871832888,-151.0,0.00010575,2]
[400958859,1767871832898,-151.0,0.00010575,2]
[400958860,1767871832907,-151.0,0.00010575,2]
[400958861,1767871832917,-151.0,0.00010575,2]
[400958862,1767871832926,-500.0,0.00010575,2]
[400958863,1767871832935,-200.0,0.00010575,2]
[400958864,1767871832944,-200.0,0.00010575,2]
[400958865,1767871832953,-151.0,0.00010575,2]
[400958866,1767871832963,-151.0,0.00010575,2]
[400958867,1767871832972,-151.0,0.00010575,2]
[400958868,1767871832981,-151.0,0.00010575,2]
[400958869,1767871832990,-151.0,0.00010575,2]
[400958870,1767871833000,-151.0,0.00010575,2]
[400958871,1767871833009,-151.0,0.00010575,2]
[400958872,1767871833019,-151.0,0.00010575,2]
[400958873,1767871833028,-151.0,0.00010575,2]
[400958874,1767871833038,-151.0,0.00010575,2]
[400958875,1767871833047,-151.0,0.00010575,2]
[400958876,1767871833056,-500.0,0.00010575,2]
[400958877,1767871833065,-162.679926,0.00010578,2]
[400958878,1767871833075,-151.0,0.00010579,2]
[400958879,1767871833084,-1009.59,0.0001058,2]
[400958880,1767871833093,-1152.6028255,0.00010581,2]
[400958881,1767871833102,-151526.96001604,0.00010581,2]
[400958882,1767871833114,-6776.36821593,0.00010581,2]
[400958883,1767871833127,-11077.10733133,0.00010581,2]
[400958884,1767871833138,-741.54979015,0.00010581,2]
[400958885,1767871833150,-658.19883048,0.00010581,2]
[400958886,1767871833161,-300.0,0.00010581,2]
[400958887,1767871833182,-39351.0,0.00010581,2]
[400958888,1767871833237,-2080.74371364,0.00010581,2]
[400958891,1767871837990,-357.24165298,0.00010528,2]
[400958892,1767871838000,-78.44006559,0.00010528,2]
[400958893,1767871838013,-421.55993441,0.00010528,2]
[400958894,1767871838023,-197.6906911,0.00010528,2]
[400958895,1767871838033,-259.23675643,0.00010528,2]
[400958896,1767871838043,-398.31590306,0.00010528,2]
[400958897,1767871838053,-344.4264246,0.00010528,2]
[400958898,1767871838066,-155.5735754,0.00010528,2]
[400958899,1767871838076,-151.0,0.00010581,2]
[400958900,1767871838086,-3280.99260233,0.00010581,2]
[400958901,1767871838098,-3573.67585371,0.00010581,2]
[400959082,1767871841388,-1.7e-07,0.00010581,2]
[400959083,1767871841962,-245.98424924,0.00010581,2]
[400959084,1767871841971,-1104.66075076,0.00010581,2]
[400959088,1767871843510,-20900.0,0.00010581,2]
[400959089,1767871844194,-5949.82828258,0.00010581,2]
[400959090,1767871845882,-530.23719591,0.00010581,2]
[400959091,1767871845945,-497.94289992,0.00010581,2]
[400959092,1767871845959,-2392.52408302,0.00010581,2]
[400959093,1767871846099,-66346.11169507,0.00010581,2]
[400959098,1767871847937,2444.0,0.000142,5]
[400959099,1767871877354,-701.36552898,0.00010516,2]
[400959100,1767871877475,-8597.27894204,0.00010581,2]
[400959101,1767871880100,-10000.01,0.00010581,2]
[400959102,1767871933851,-150.0,0.00010342,2]
[400959103,1767871933879,-500.0,0.00010342,2]
[400959104,1767871933910,-500.0,0.00010342,2]
[400959105,1767871933939,-150.0,0.00010342,2]
[400959106,1767871933967,-150.0,0.00010342,2]
[400959107,1767871933995,-500.0,0.00010342,2]
[400959108,1767871934024,-150.0,0.00010342,2]
[400959109,1767871934053,-500.0,0.00010342,2]
[400959110,1767871934080,-150.0,0.00010342,2]
[400959111,1767871934112,-500.0,0.00010342,2]
[400959112,1767871934141,-79.031,0.00010369,2]
[400959113,1767871934703,-3341.948,0.00010369,2]
[400959114,1767871939837,-226.304,0.00010369,2]
[400959115,1767871939869,-500.0,0.00010397,2]
[400959116,1767871939900,-548.0178051,0.00010397,2]
[400959117,1767871939930,-150.0,0.00010397,2]
[400959118,1767871939960,-200.0,0.00010397,2]
[400959119,1767871939989,-500.0,0.00010397,2]
[400959120,1767871940021,-500.0,0.00010397,2]
[400959121,1767871940049,-500.0,0.00010397,2]
[400959122,1767871940077,-397.26000857,0.00010452,2]
[400959123,1767871940107,-150.0,0.00010452,2]
[400959124,1767871940135,-150.0,0.00010452,2]
[400959125,1767871940164,-500.0,0.00010452,2]
[400959126,1767871940193,-500.0,0.00010452,2]
[400959127,1767871940503,-356.84637266,0.00010479,2]
[400959128,1767871946386,-143.15362734,0.00010479,2]
[400959129,1767871946418,-500.0,0.00010479,2]
[400959130,1767871946450,-500.0,0.00010479,2]
[400959131,1767871946483,-500.0,0.00010479,2]
[400959132,1767871946515,-504.43862274,0.00010479,2]
[400959133,1767871946544,-250.0,0.00010506,2]
[400959134,1767871946574,-500.0,0.00010506,2]
[400959135,1767871946601,-500.0,0.00010506,2]
[400959136,1767871946629,-508.22403406,0.00010561,2]
[400959137,1767871946656,-500.0,0.00010561,2]
[400959138,1767871946683,-568.37743172,0.00010575,2]
[400959139,1767871946891,-51.62256828,0.00010575,2]
[400959140,1767871957699,-499.33044517,0.0001032,2]
[400959141,1767871957728,-200.0,0.00010575,2]
[400959142,1767871957757,-322.6107,0.00010575,2]
[400959143,1767871957787,-166.77833559,0.00010575,2]
[400959144,1767871957816,-151.0,0.00010575,2]
[400959145,1767871957846,-200.0,0.00010575,2]
[400959146,1767871958017,-151.0,0.00010575,2]
[400959147,1767871958051,-626.22881488,0.00010575,2]
[400959148,1767871958081,-151.0,0.00010575,2]
[400959149,1767871958112,-151.0,0.00010575,2]
[400959150,1767871958141,-151.0,0.00010575,2]
[400959151,1767871958170,-151.0,0.00010575,2]
[400959152,1767871958198,-151.0,0.00010575,2]
[400959153,1767871958231,-500.0,0.00010575,2]
[400959154,1767871958261,-500.0,0.00010575,2]
[400959155,1767871958289,-151.0,0.00010575,2]
[400959156,1767871958317,-500.0,0.00010575,2]
[400959157,1767871958347,-151.0,0.00010575,2]
[400959158,1767871958556,-500.0,0.00010575,2]
[400959159,1767871958587,-500.0,0.00010575,2]
[400959160,1767871958616,-151.0,0.00010575,2]
[400959161,1767871958644,-151.0,0.00010575,2]
[400959162,1767871958672,-500.0,0.00010575,2]
[400959163,1767871958700,-151.0,0.00010575,2]
[400959164,1767871958730,-500.0,0.00010575,2]
[400959165,1767871958758,-574.12855637,0.00010575,2]
[400959166,1767871958787,-151.0,0.00010575,2]
[400959167,1767871958816,-500.0,0.00010575,2]
[400959168,1767871958846,-151.0,0.00010575,2]
[400959169,1767871958876,-500.0,0.00010575,2]
[400959170,1767871958904,-293.26916709,0.00010575,2]
[400959171,1767871958933,-151.0,0.00010575,2]
[400959172,1767871959005,-500.0,0.00010575,2]
[400959173,1767871959033,-500.0,0.00010575,2]
[400959174,1767871959062,-151.0,0.00010575,2]
[400959175,1767871959090,-500.0,0.00010575,2]
[400959176,1767871959118,-250.0,0.00010575,2]
[400959177,1767871959146,-151.0,0.00010575,2]
[400959178,1767871959174,-500.0,0.00010575,2]
[400959179,1767871959203,-1500.0,0.00010575,2]
[400959180,1767871959229,-500.0,0.00010575,2]
[400959181,1767871959256,-151.0,0.00010575,2]
[400959182,1767871959382,-1500.0,0.00010575,2]
[400959183,1767871959409,-151.0,0.00010575,2]
[400959184,1767871959437,-500.0,0.00010575,2]
[400959185,1767871959466,-1500.0,0.00010575,2]
[400959186,1767871959499,-500.0,0.00010575,2]
[400959187,1767871959531,-151.0,0.00010575,2]
[400959188,1767871959560,-500.0,0.00010575,2]
[400959189,1767871960208,-1500.0,0.00010575,2]
[400959190,1767871960238,-500.0,0.00010575,2]
[400959191,1767871960429,-500.0,0.00010575,2]
[400959192,1767871960460,-1500.0,0.00010575,2]
[400959193,1767871960493,-500.0,0.00010575,2]
[400959194,1767871960522,-500.0,0.00010575,2]
[400959195,1767871960675,-500.0,0.00010575,2]
[400959196,1767871960703,-500.0,0.00010575,2]
[400959197,1767871960732,-1500.0,0.00010575,2]
[400959198,1767871960760,-500.0,0.00010575,2]
[400959199,1767871960789,-500.0,0.00010575,2]
[400959200,1767871960817,-1500.0,0.00010575,2]
[400959201,1767871960962,-500.0,0.00010575,2]
[400959202,1767871960990,-500.0,0.00010575,2]
[400959203,1767871961019,-1500.0,0.00010575,2]
[400959204,1767871961048,-500.0,0.00010575,2]
[400959205,1767871961076,-500.0,0.00010575,2]
[400959206,1767871961105,-1500.0,0.00010575,2]
[400959207,1767871961263,-500.0,0.00010575,2]
[400959208,1767871961292,-1500.0,0.00010575,2]
[400959209,1767871961324,-500.0,0.00010575,2]
[400959210,1767871961358,-1500.0,0.00010575,2]
[400959211,1767871961388,-500.0,0.00010575,2]
[400959212,1767871961417,-500.0,0.00010575,2]
[400959213,1767871961659,-2000.0,0.00010575,2]
[400959214,1767871961688,-151.0,0.00010575,2]
[400959215,1767871961715,-500.0,0.00010575,2]
[400959216,1767871961744,-2000.0,0.00010575,2]
[400959217,1767871961772,-250.0,0.00010575,2]
[400959218,1767871964056,-1448.90424163,0.00010575,2]
[400959219,1767871964070,-250.0,0.00010575,2]
[400959220,1767871964088,-198.01,0.00010575,2]
[400959221,1767871964130,-103.08575837,0.00010575,2]
[400959222,1767871964160,-151.0,0.00010575,2]
[400959223,1767871964190,-250.0,0.00010575,2]
[400959224,1767871964221,-2000.0,0.00010575,2]
[400959225,1767871964250,-151.0,0.00010575,2]
[400959226,1767871964283,-151.0,0.00010575,2]
[400959227,1767871964313,-2000.0,0.00010575,2]
[400959228,1767871964342,-151.0,0.00010575,2]
[400959229,1767871965205,-85.83848326,0.00010575,2]
[400959230,1767871968864,500.0,0.00010479,2]
[400959231,1767871969174,500.0,0.00010479,2]
[400959232,1767871969499,500.0,0.00010479,2]
[400959233,1767871969798,500.0,0.00010479,2]
[400959234,1767871969944,181.4657295,0.00010574,2]
[400959235,1767871970096,500.0,0.00010479,2]
[400959236,1767871970810,500.0,0.00010574,2]
[400959237,1767871970865,500.0,0.00010479,2]
[400959238,1767871970925,250.06915708,0.00010574,2]
[400959239,1767871970984,500.0,0.00010479,2]
[400959240,1767871971113,500.0,0.00010479,2]
[400959241,1767871971196,478.82113215,0.00010574,2]
[400959242,1767871972112,445.03088774,0.00010479,2]
[400959243,1767871974534,500.0,0.00010574,2]
[400959244,1767871974611,272.16327894,0.00010574,2]
[400959251,1767871982854,300.0,0.00010574,2]
[400959252,1767871989476,150.0,0.00010574,2]
[400959253,1767871994676,1200.0,0.00010574,2]
[400959254,1767871997661,-1914.16151674,0.00010575,2]
[400959255,1767871997690,-250.0,0.00010575,2]
[400959256,1767871997718,-151.0,0.00010575,2]
[400959257,1767871997745,-2000.0,0.00010575,2]
[400959258,1767871997775,-151.0,0.00010575,2]
[400959259,1767871998079,-2000.0,0.00010575,2]
[400959260,1767871998109,-151.0,0.00010575,2]
[400959261,1767871998136,-2000.0,0.00010575,2]
[400959262,1767871998164,-151.0,0.00010575,2]
[400959263,1767871998268,-2000.0,0.00010575,2]
[400959264,1767871998296,-151.0,0.00010575,2]
[400959265,1767871998328,-2000.0,0.00010575,2]
[400959266,1767871998357,-200.0,0.00010575,2]
[400959267,1767871998386,-151.0,0.00010575,2]
[400959268,1767871998415,-151.0,0.00010575,2]
[400959269,1767871998444,-194.01,0.00010575,2]
[400959270,1767871998667,-305.99,0.00010575,2]
[400959271,1767872002553,500.0,0.00010342,2]
[400959272,1767872002755,532.10117033,0.00010397,2]
[400959273,1767872002796,500.0,0.00010342,2]
[400959274,1767872002884,500.0,0.00010397,2]
[400959275,1767872002992,500.0,0.00010452,2]
[400959276,1767872003886,500.0,0.00010342,2]
[400959277,1767872004049,500.0,0.00010397,2]
[400959278,1767872004197,500.0,0.00010452,2]
[400959279,1767872004373,500.0,0.00010506,2]
[400959280,1767872004550,500.0,0.00010561,2]
[400959281,1767872014171,-300.0,0.00010576,2]
[400959282,1767872014199,-188.94617776,0.00010576,2]
[400959283,1767872029268,-156.172729,0.00010578,2]
[400959284,1767872045411,-631.07745591,0.0001058,2]
[400959285,1767872047389,439.36358485,0.0001008,2]
[400959286,1767872061066,-578.20924308,0.00010581,2]
[400959287,1767872077792,-1000.0,0.00010581,2]
[400959288,1767872093387,-299.99271758,0.00010606,2]
[400959289,1767872108934,200.0,0.00010606,2]
[400959293,1767872133541,10000.01,0.00010047,2]
[400959294,1767872133564,6278.99,0.00010047,2]
[400959295,1767872157375,1100.0,0.00010298,2]
[400959304,1767872202445,500.0,0.00010507,2]
[400959306,1767872235171,578.20924308,0.00010616,2]
[400959307,1767872240870,-392.0,0.00010616,2]
[400959308,1767872241901,-9608.01,0.0001064,2]
[400959309,1767872241992,-10000.01,0.0001064,2]
[400959310,1767872242121,-10000.01,0.0001064,2]
[400959311,1767872242192,-10000.01,0.0001064,2]
[400959312,1767872242294,-10000.01,0.0001064,2]
[400959313,1767872242395,-10000.01,0.0001064,2]
[400959314,1767872247455,-10000.01,0.0001064,2]
[400959315,1767872247576,-10000.01,0.0001064,2]
[400959316,1767872262875,-10000.01,0.0001064,2]
[400959317,1767872271916,-1897.53,0.00010345,2]
[400959318,1767872271950,-6204.95,0.0001064,2]
[400959334,1767872373171,-500.0,0.00010507,2]
[400959335,1767872373202,-467.57701932,0.00010612,2]
[400959336,1767872373233,-151.0,0.00010637,2]
[400959337,1767872373268,-500.0,0.00010639,2]
[400959338,1767872373300,-500.0,0.00010639,2]
[400959339,1767872373334,-500.0,0.00010639,2]
[400959340,1767872373370,-500.0,0.00010639,2]
[400959341,1767872373404,-500.0,0.00010639,2]
[400959342,1767872373441,-500.0,0.00010639,2]
[400959343,1767872373475,-500.0,0.00010639,2]
[400959344,1767872373508,-262.85596136,0.00010639,2]
[400959345,1767872374453,-237.14403864,0.00010639,2]
[400959346,1767872381620,-273.5996837,0.00010629,2]
[400959347,1767872381653,-500.0,0.00010639,2]
[400959348,1767872381686,-500.0,0.00010639,2]
[400959349,1767872381717,-500.0,0.00010639,2]
[400959350,1767872382145,-500.0,0.00010639,2]
[400959351,1767872382183,-500.0,0.00010639,2]
[400959352,1767872382213,-500.0,0.00010639,2]
[400959353,1767872382248,-500.0,0.00010639,2]
[400959354,1767872382281,-500.0,0.00010639,2]
[400959355,1767872382312,-500.0,0.00010639,2]
[400959356,1767872382624,-452.8106326,0.00010639,2]
[400959357,1767872388745,-47.1893674,0.00010639,2]
[400959358,1767872388778,-500.0,0.00010639,2]
[400959359,1767872388809,-500.0,0.00010639,2]
[400959360,1767872388840,-500.0,0.00010639,2]
[400959361,1767872388870,-500.0,0.00010639,2]
[400959362,1767872388900,-500.0,0.00010639,2]
[400959363,1767872388931,-500.0,0.00010639,2]
[400959364,1767872389231,-548.05411016,0.00010639,2]
[400959365,1767872389298,-500.0,0.00010639,2]
[400959366,1767872389330,-500.0,0.00010639,2]
[400959367,1767872389360,-175.04840996,0.00010639,2]
[400959368,1767872389663,-459.42622496,0.00010639,2]
[400959369,1767872401079,1000.0,0.000149,3]
[400959370,1767872401111,-40.57377504,0.00010639,2]
[400959371,1767872401144,-500.0,0.00010639,2]
[400959372,1767872401177,-500.0,0.00010639,2]
[400959373,1767872401206,-185.1747925,0.00010639,2]
[400959374,1767872401237,-500.0,0.00010639,2]
[400959375,1767872401266,-1200.0,0.00010639,2]
[400959376,1767872401295,-150.0,0.00010639,2]
[400959377,1767872401476,-300.0,0.00010638,2]
[400959378,1767872401486,-1200.0,0.00010638,2]
[400959379,1767872401495,-2348.51286492,0.0001064,2]
[400959380,1767872402242,1000.0,0.000149,3]
[400959381,1767872402920,1000.0,0.000149,3]
[400959382,1767872403529,1000.0,0.000149,3]
[400959383,1767872404102,1000.0,0.000149,3]
[400959384,1767872404189,-10000.01,0.0001064,2]
[400959385,1767872404655,1000.0,0.000149,3]
[400959386,1767872405283,1000.0,0.000149,3]
[400959387,1767872405879,452.13003118,0.000149,3]
[400959389,1767872495984,1852.42,9.908e-05,2]
[400959390,1767872624665,1000.0,8.959e-05,2]
[400959391,1767872735481,564.28,9.636e-05,2]
[400959392,1767872736915,-564.28,0.00010171,2]
[400959393,1767872736944,-209.61300698,0.00010343,2]
[400959394,1767872736973,-181.044,0.00010427,2]
[400959395,1767872737001,-2736.784,0.00010427,2]
[400959396,1767872737029,-300.0,0.00010443,2]
[400959397,1767872737058,-185.90849551,0.00010443,2]
[400959398,1767872737086,-300.0,0.00010458,2]
[400959399,1767872737115,-300.0,0.00010458,2]
[400959400,1767872737337,-1200.0,0.00010458,2]
[400959401,1767872737366,-500.0,0.00010459,2]
[400959402,1767872737395,-500.0,0.00010459,2]
[400959403,1767872737423,-150.0,0.00010459,2]
[400959404,1767872737449,-150.0,0.00010459,2]
[400959405,1767872737479,-150.0,0.00010459,2]
[400959406,1767872737508,-150.0,0.00010459,2]
[400959407,1767872737537,-150.0,0.00010459,2]
[400959408,1767872737565,-150.0,0.00010459,2]
[400959409,1767872737592,-150.0,0.00010459,2]
[400959410,1767872737622,-150.0,0.00010459,2]
[400959411,1767872737650,-150.0,0.00010459,2]
[400959412,1767872737678,-150.0,0.00010459,2]
[400959413,1767872737912,-150.0,0.00010459,2]
[400959414,1767872737946,-150.0,0.00010459,2]
[400959415,1767872737976,-150.0,0.00010459,2]
[400959416,1767872738007,-500.0,0.00010459,2]
[400959417,1767872738037,-300.0,0.0001047,2]
[400959418,1767872738790,-161.2772,0.00010512,2]
[400959419,1767872738799,-38.7228,0.00010514,2]
[400959420,1767872738821,-300.0,0.00010514,2]
[400959421,1767872738839,-100.01,0.00010514,2]
[400959422,1767872740339,-61.2672,0.00010514,2]
[400959423,1767872740368,-500.0,0.00010514,2]
[400959424,1767872740397,-150.0,0.00010514,2]
[400959425,1767872740426,-150.0,0.00010514,2]
[400959426,1767872740454,-150.0,0.00010514,2]
[400959427,1767872740485,-200.0,0.00010514,2]
[400959428,1767872740513,-200.0,0.00010514,2]
[400959429,1767872740544,-150.0,0.00010514,2]
[400959430,1767872740573,-500.0,0.00010514,2]
[400959431,1767872740602,-209.61300697,0.00010533,2]
[400959432,1767872740630,-2500.0,0.00010533,2]
[400959433,1767872740786,-1200.0,0.00010539,2]
[400959434,1767872741836,-458.24958606,0.0001054,2]
[400959435,1767872741850,-7229.87951394,0.0001054,2]
[400959436,1767872741860,-370.13048606,0.0001054,2]
[400959437,1767872749347,-629.85951394,0.0001054,2]
[400959438,1767872749376,-1219.52379571,0.0001054,2]
[400959439,1767872749404,-311.71801288,0.0001054,2]
[400959440,1767872749431,-150.0,0.00010568,2]
[400959441,1767872749459,-500.0,0.00010569,2]
[400959442,1767872749488,-500.0,0.00010569,2]
[400959443,1767872749517,-200.0,0.00010569,2]
[400959444,1767872749689,-2977.80735494,0.00010569,2]
[400959445,1767872794262,7513.3,0.000202,30]
[400959446,1767872802479,2318.0,0.000119,5]
[400959447,1767872806680,200.0,9.719e-05,2]